bitfinex/quotes_ETHUSD_20250507
["timestamp","ask_amount","ask_price","bid_price","bid_amount"]
[1746631519490,3.0,1824.4,1824.0,0.7694]
[1746631520409,3.38705095,1824.1,1823.9,0.81907343]
[1746631520599,3.38705095,1824.1,1823.9,0.51199282]
[1746631520804,3.38705095,1824.1,1823.7,1.28289282]
[1746631521015,3.38705095,1824.1,1823.7,2.5751821]
[1746631521600,3.38705095,1824.1,1823.7,1.28289282]
[1746631521880,3.0,1824.0,1823.7,0.51199282]
[1746631522281,4.14935095,1823.9,1823.5,0.7709]
[1746631525434,4.14935095,1823.9,1823.4,11.04]
[1746631525435,3.38705095,1823.7,1823.4,5.0]
[1746631525589,3.7554,1823.6,1823.4,5.0]
[1746631525789,3.7554,1823.6,1823.1,24.21166021]
[1746631525988,3.7554,1823.6,1823.1,27.25619923]
[1746631527913,3.7554,1823.6,1823.1,23.58723902]
[1746631529350,0.7898,1823.8,1823.3,0.788]
[1746631529651,3.7898,1824.0,1823.3,0.788]
[1746631530622,3.0,1823.8,1823.3,0.788]
[1746631530831,3.63870509,1823.8,1823.3,0.788]
[1746631531150,3.38705095,1823.5,1823.2,0.5119539]
[1746631531316,3.0,1823.4,1822.9,5.8283]
[1746631536855,0.7706,1823.5,1823.0,0.05485238]
[1746631537052,0.7706,1823.5,1823.0,0.58831524]
[1746631537259,3.0,1823.6,1823.0,0.58831524]
[1746631537260,0.7647,1823.7,1823.1,0.8308]
[1746631537582,3.38705095,1823.9,1823.3,0.8308]
[1746631537583,4.15175095,1823.9,1823.3,0.8308]
[1746631537746,3.0,1823.8,1823.3,0.8308]
[1746631537940,4.15175095,1823.9,1823.3,0.8308]
[1746631538144,4.56692605,1823.9,1823.3,0.8308]
[1746631538358,3.0,1823.8,1823.3,0.8308]
[1746631539400,3.0,1823.6,1823.0,6.62831524]
[1746631539604,3.38705095,1823.7,1823.0,6.62831524]
[1746631539605,3.0,1823.4,1823.0,6.04]
[1746631539885,3.0,1823.4,1822.9,5.0]
[1746631540093,3.0,1823.4,1823.0,0.5]
[1746631541748,3.0,1823.4,1822.8,6.361]
[1746631543776,0.8271,1823.5,1822.8,6.361]
[1746631545662,0.8271,1823.5,1822.9,0.05485237]
[1746631546172,0.8271,1823.5,1822.8,6.361]
[1746631551120,0.8271,1823.5,1822.9,0.51262131]
[1746631552493,2.30657174,1823.5,1822.9,0.51262131]
[1746631552886,7.79054504,1823.5,1822.9,0.51262131]
[1746631554392,0.7594,1823.2,1822.9,0.51262131]
[1746631555284,0.7655,1823.4,1822.8,6.361]
[1746631555481,0.7655,1823.6,1822.9,0.84045396]
[1746631555861,0.7655,1823.6,1822.9,0.7856]
[1746631556062,0.7655,1823.6,1822.9,0.84044977]
[1746631556293,3.0,1823.5,1822.9,1.48349475]
[1746631556509,3.0,1823.5,1822.9,1.42864498]
[1746631557388,3.0,1823.5,1822.9,1.94189238]
[1746631558393,3.0,1823.5,1822.9,1.42864498]
[1746631560202,8.48404824,1823.5,1822.9,1.42864498]
[1746631560395,0.84840482,1823.4,1822.9,0.7856]
[1746631560771,9.31442729,1823.3,1822.8,5.59]
[1746631561191,5.48489987,1823.2,1822.8,5.59]
[1746631561996,3.0,1823.0,1822.8,5.59]
[1746631562380,3.0,1823.2,1822.8,5.59]
[1746631562699,0.84840482,1823.4,1822.9,0.7691]
[1746631562907,3.0,1823.4,1822.9,0.7691]
[1746631563668,3.0,1823.4,1822.9,1.07714608]
[1746631564069,3.0,1823.4,1822.9,0.7691]
[1746631565696,3.0,1823.4,1823.0,0.30801677]
[1746631565902,3.0,1823.4,1823.1,0.8071]
[1746631566107,4.18199352,1823.7,1823.1,0.8071]
[1746631566314,3.0,1823.6,1823.1,0.8071]
[1746631566614,3.0,1823.6,1823.1,1.11511677]
[1746631567182,3.0,1823.6,1823.1,0.8071]
[1746631567380,3.0,1823.6,1823.1,1.32042627]
[1746631567887,3.7815,1823.4,1823.1,1.32042627]
[1746631568092,4.49845935,1823.4,1823.1,1.32042627]
[1746631568472,4.49845935,1823.4,1823.1,0.8071]
[1746631568706,3.38809352,1823.3,1823.0,0.82134304]
[1746631568985,3.38809352,1823.3,1823.0,0.51332627]
[1746631569635,3.38809352,1823.3,1822.9,0.8289]
[1746631569795,0.78865529,1823.3,1822.9,0.8289]
[1746631571783,3.0,1823.2,1822.9,0.8289]
[1746631571988,3.0,1823.2,1822.7,0.7857]
[1746631572926,3.0,1823.2,1822.7,1.29941141]
[1746631573798,8.48491647,1823.2,1822.7,1.29941141]
[1746631574006,3.0,1823.0,1822.7,0.7857]
[1746631574334,3.0,1822.9,1822.6,3.66896021]
[1746631574507,3.0,1822.7,1822.5,3.66896021]
[1746631574694,0.3,1822.6,1822.5,3.66896021]
[1746631574893,3.7586,1822.8,1822.5,3.66896021]
[1746631575120,9.24466719,1822.8,1822.5,3.66896021]
[1746631575518,14.44800806,1822.7,1822.5,3.66896021]
[1746631575902,8.96161461,1822.7,1822.5,3.66896021]
[1746631576503,5.48666739,1822.6,1822.5,3.66896021]
[1746631576704,1.4448282,1822.6,1822.5,3.66896021]
[1746631577398,6.93149559,1822.6,1822.5,3.66896021]
[1746631577601,2.2493282,1822.6,1822.5,3.66896021]
[1746631578943,3.8021,1822.7,1822.4,5.48707602]
[1746631579116,3.0,1822.6,1822.5,5.48696844]
[1746631579298,0.8021,1822.9,1822.7,5.48622749]
[1746631579636,0.41044632,1823.0,1822.8,5.48592845]
[1746631579840,1.0648038,1823.0,1822.8,5.48592845]
[1746631580027,1.0648038,1823.0,1822.7,5.48618785]
[1746631580348,1.48305124,1823.0,1822.7,5.48618785]
[1746631581143,1.48305124,1823.0,1822.8,5.48597554]
[1746631581343,4.65059165,1823.1,1822.9,5.48563002]
[1746631581529,10.23759165,1823.1,1822.9,5.48563002]
[1746631581848,4.65059165,1823.1,1822.9,5.48563002]
[1746631582544,4.65059165,1823.1,1822.8,5.48587565]
[1746631583739,10.13578269,1823.1,1822.8,5.48587565]
[1746631583920,1.01357827,1823.0,1822.8,5.48587565]
[1746631584127,3.8021,1823.1,1822.9,5.48576444]
[1746631584327,3.0,1823.1,1822.9,5.48576444]
[1746631585136,3.0,1823.1,1822.8,6.26712008]
[1746631585637,3.0,1823.1,1823.0,5.48546352]
[1746631585840,4.53136146,1823.1,1823.0,5.48546352]
[1746631586206,4.53136146,1823.1,1822.9,5.48563392]
[1746631586506,4.53136146,1823.1,1822.9,10.97121247]
[1746631586838,4.53136146,1823.1,1822.9,5.48557855]
[1746631587034,4.53136146,1823.1,1822.8,5.48595785]
[1746631587242,0.45313615,1823.0,1822.8,5.4858675]
[1746631587437,0.45313615,1823.0,1822.5,6.27644983]
[1746631587438,3.0,1822.8,1822.5,6.27644983]
[1746631587612,9.30105201,1822.8,1822.4,5.48705287]
[1746631587813,9.30105201,1822.8,1822.4,10.97411732]
[1746631588253,11.44799338,1822.7,1822.4,5.48705287]
[1746631588466,12.37809858,1822.7,1822.4,5.48705287]
[1746631588610,9.29207922,1822.6,1822.2,5.48767831]
[1746631588810,9.29207922,1822.6,1822.3,5.4875689]
[1746631589045,0.92920792,1822.5,1822.2,5.48767538]
[1746631589250,3.0,1822.3,1822.1,5.48802188]
[1746631589448,3.7649,1822.3,1822.0,9.15726194]
[1746631589614,3.7649,1822.3,1822.0,14.64557326]
[1746631589815,3.7649,1822.3,1822.1,5.48814738]
[1746631590033,5.28627941,1822.3,1822.0,9.15731573]
[1746631590933,5.28627941,1822.3,1822.0,3.66896021]
[1746631590934,3.0,1822.1,1822.0,3.66896021]
[1746631593054,3.0,1822.4,1822.2,10.97536034]
[1746631593351,4.75990792,1822.5,1822.3,5.48757065]
[1746631593744,4.75990792,1822.5,1822.4,5.48726953]
[1746631593932,3.92920792,1822.5,1822.4,5.48726953]
[1746631594746,0.92920792,1822.5,1822.4,5.48726953]
[1746631594953,3.0,1822.6,1822.3,5.48736127]
[1746631595252,3.0,1822.6,1822.4,5.48726923]
[1746631595427,4.7608052,1822.7,1822.4,5.48726923]
[1746631595631,10.3498052,1822.7,1822.4,5.48726923]
[1746631595814,15.83633039,1822.7,1822.3,5.48736127]
[1746631596014,1.58363304,1822.6,1822.3,5.48736127]
[1746631597049,1.58363304,1822.6,1822.4,5.48724111]
[1746631598266,1.58363304,1822.6,1822.3,5.48755543]
[1746631598465,7.07031636,1822.6,1822.3,5.48755543]
[1746631598766,11.44889059,1822.4,1822.1,5.48802923]
[1746631598935,12.96909965,1822.4,1822.1,5.48802923]
[1746631599442,3.7532,1822.3,1821.8,0.7644]
[1746631599626,14.82602849,1822.3,1821.6,6.25405478]
[1746631599954,14.82602849,1822.3,1821.9,5.48859047]
[1746631600146,1.48260285,1822.2,1821.9,5.48859047]
[1746631600743,9.3382,1822.3,1822.1,5.48817298]
[1746631602172,9.3382,1822.3,1822.0,5.48828371]
[1746631602324,9.3382,1822.3,1822.1,5.48813208]
[1746631602520,9.3382,1822.3,1822.0,10.97656278]
[1746631602755,9.3382,1822.3,1822.0,10.9765296]
[1746631603053,10.97277092,1822.3,1822.1,5.48813925]
[1746631603935,10.21957092,1822.3,1822.2,5.4878718]
[1746631604342,10.21957092,1822.3,1822.1,5.48813925]
[1746631604678,10.21957092,1822.3,1822.0,5.48829772]
[1746631604881,10.21957092,1822.3,1822.0,10.97660908]
[1746631605042,10.21957092,1822.3,1822.0,10.97656276]
[1746631606573,10.21957092,1822.3,1822.1,5.48812207]
[1746631607438,10.21957092,1822.3,1822.1,5.48800505]
[1746631608570,8.585,1822.3,1822.1,5.48797958]
[1746631609277,3.0,1822.4,1822.2,5.48776767]
[1746631609477,3.0,1822.4,1822.2,5.48780214]
[1746631609776,3.0,1822.4,1822.2,5.48772965]
[1746631610076,4.48745981,1822.4,1822.2,5.48772965]
[1746631610401,1.48745981,1822.4,1822.2,5.48772965]
[1746631610554,9.28959596,1822.5,1822.2,5.48772965]
[1746631611363,3.8026,1822.5,1822.2,5.48772965]
[1746631611546,9.28958515,1822.5,1822.2,5.48772965]
[1746631611753,3.8026,1822.5,1822.2,5.48772965]
[1746631613480,3.8026,1822.5,1822.2,10.97539643]
[1746631613691,10.97326433,1822.5,1822.1,5.48803832]
[1746631613879,3.0,1822.2,1822.1,5.48803832]
[1746631614383,3.0,1822.2,1822.0,5.48833835]
[1746631614588,3.0,1822.2,1821.8,5.48891806]
[1746631614589,3.0,1822.0,1821.8,5.48891806]
[1746631614793,6.69124855,1821.9,1821.8,5.48891806]
[1746631614957,6.39124855,1821.9,1821.8,5.48891806]
[1746631615688,3.0,1821.9,1821.8,5.48891806]
[1746631620090,3.0,1821.9,1821.8,6.25501806]
[1746631620891,7.55378079,1822.6,1821.9,5.48877545]
[1746631621186,9.31335855,1822.5,1822.2,5.48774983]
[1746631621888,9.31335855,1822.5,1822.1,5.48797239]
[1746631622077,3.0,1822.3,1822.1,5.48797239]
[1746631622268,0.8263,1822.2,1821.8,5.48886729]
[1746631622588,3.0,1822.1,1821.8,10.97777988]
[1746631622891,3.0,1822.1,1821.8,5.48887974]
[1746631623793,3.0,1822.1,1821.8,10.97777174]
[1746631624090,4.1263,1822.2,1821.9,5.48871248]
[1746631624263,0.41263,1822.1,1821.9,5.48871248]
[1746631624465,9.61417407,1822.2,1821.9,5.48871248]
[1746631624666,4.1263,1822.2,1821.9,5.48871248]
[1746631625592,1.1263,1822.2,1822.0,5.48826158]
[1746631625795,9.29407309,1822.4,1822.1,5.48795585]
[1746631625959,9.29407309,1822.4,1822.2,5.48765553]
[1746631625960,0.8068,1822.4,1822.2,5.48765553]
[1746631626159,1.44608,1822.4,1822.1,5.48805678]
[1746631626466,0.8068,1822.4,1822.3,5.48757065]
[1746631626676,8.586,1822.5,1822.3,5.48757065]
[1746631627204,3.7612,1822.6,1822.4,5.48724995]
[1746631627381,14.83415272,1822.6,1822.2,6.26236733]
[1746631627588,1.48341527,1822.5,1822.2,5.48776733]
[1746631627883,14.83415272,1822.6,1822.3,5.48756609]
[1746631628079,3.7612,1822.6,1822.4,5.48702005]
[1746631628287,3.7612,1822.6,1822.3,5.4873931]
[1746631628961,3.7612,1822.6,1822.2,5.48769254]
[1746631628962,11.90453757,1822.6,1822.2,5.48769254]
[1746631629162,3.0,1822.4,1822.2,5.48768397]
[1746631629392,8.48697176,1822.5,1822.2,5.48768397]
[1746631629709,3.0,1822.5,1822.2,5.48768397]
[1746631630286,4.19044372,1822.5,1822.2,5.48768397]
[1746631630697,0.7907,1822.4,1822.1,5.48795506]
[1746631631087,0.7907,1822.4,1822.2,5.48785412]
[1746631631399,0.7907,1822.4,1822.1,5.48795506]
[1746631631600,1.83753033,1822.4,1822.1,5.48795506]
[1746631631903,1.83753033,1822.4,1822.1,10.97593132]
[1746631632091,1.83753033,1822.4,1822.1,5.48795506]
[1746631632409,1.83753033,1822.4,1822.1,10.97591323]
[1746631632606,1.83753033,1822.4,1822.2,5.4878083]
[1746631632784,0.7907,1822.4,1822.2,5.4878083]
[1746631633601,4.19044372,1822.5,1822.2,5.4878083]
[1746631636400,9.67744162,1822.5,1822.1,6.25545506]
[1746631636600,9.67744162,1822.5,1822.1,10.97595107]
[1746631636904,4.19044372,1822.5,1822.2,5.4877425]
[1746631637100,3.7907,1822.6,1822.0,0.7641]
[1746631637272,5.97014775,1822.8,1822.5,5.48696844]
[1746631637471,6.3627,1822.8,1822.6,5.48664741]
[1746631637676,6.3627,1822.8,1822.5,5.48696844]
[1746631637677,4.17225614,1822.8,1822.5,5.48696844]
[1746631637907,3.0,1822.7,1822.5,5.48696844]
[1746631638389,3.38955614,1822.6,1822.5,5.48677299]
[1746631638584,6.38955614,1822.6,1822.5,5.48677299]
[1746631639905,3.0,1822.5,1822.4,5.48707598]
[1746631640112,3.0,1822.5,1822.1,5.48801205]
[1746631640113,4.74155561,1822.5,1822.1,5.48801205]
[1746631640321,3.38955614,1822.2,1822.1,5.4879948]
[1746631640612,3.0,1822.1,1822.0,5.48837165]
[1746631640915,3.38955614,1822.2,1822.0,10.97666559]
[1746631641130,3.38955614,1822.2,1822.0,5.48829394]
[1746631641330,3.38955614,1822.2,1822.1,5.48817298]
[1746631643298,3.38955614,1822.2,1822.0,5.48826419]
[1746631644307,3.38955614,1822.2,1821.9,5.48863011]
[1746631644517,6.38955614,1822.2,1821.9,5.4885926]
[1746631644900,3.38955614,1822.0,1821.8,5.48890554]
[1746631645142,3.0,1821.9,1821.8,5.48890554]
[1746631645448,3.0,1821.9,1821.6,5.4895223]
[1746631645734,3.0,1821.7,1821.6,5.4895223]
[1746631646094,3.0,1821.7,1821.5,5.48984496]
[1746631646291,3.38955614,1821.6,1821.4,19.64919934]
[1746631646529,3.38955614,1821.6,1821.5,5.48998078]
[1746631647142,0.7553,1821.7,1821.6,5.4896794]
[1746631647342,7.14955614,1821.8,1821.6,5.4896794]
[1746631647712,7.56086983,1821.8,1821.6,5.4896794]
[1746631647909,4.17131369,1821.8,1821.6,5.4896794]
[1746631648307,4.17131369,1821.8,1821.6,5.48951595]
[1746631648732,5.14654506,1821.8,1821.6,5.48951595]
[1746631649335,5.14654506,1821.8,1821.4,5.0]
[1746631649628,16.60771292,1821.8,1821.4,10.49013653]
[1746631650131,16.60771292,1821.8,1821.4,10.49007843]
[1746631650132,11.1185126,1821.8,1821.4,10.49007843]
[1746631650431,11.1185126,1821.8,1821.5,5.48987289]
[1746631650628,11.1185126,1821.8,1821.5,5.48979863]
[1746631650833,5.14654506,1821.8,1821.5,5.48979755]
[1746631651201,5.14654506,1821.8,1821.4,5.0]
[1746631651421,0.41131369,1821.8,1821.6,5.48952449]
[1746631651624,3.0,1821.8,1821.7,5.48937805]
[1746631652932,0.8267,1822.1,1821.5,6.31667501]
[1746631653104,0.8267,1822.1,1821.9,5.48869351]
[1746631653304,3.8267,1822.1,1821.9,5.48869351]
[1746631653812,4.80960174,1822.1,1821.8,5.48886557]
[1746631654032,10.29781227,1822.1,1821.7,5.48919623]
[1746631654243,5.48866944,1822.0,1821.6,5.48948379]
[1746631654458,0.54886694,1821.9,1821.6,5.48948379]
[1746631654621,3.54886694,1821.9,1821.6,5.48948379]
[1746631654940,9.52083448,1821.9,1821.5,5.48976696]
[1746631655245,0.8141,1821.8,1821.5,5.48976696]
[1746631656036,0.8141,1821.8,1821.6,5.4896622]
[1746631656353,1.84759345,1821.8,1821.6,5.4896622]
[1746631656550,1.84759345,1821.8,1821.6,5.48964226]
[1746631656717,1.84759345,1821.8,1821.6,5.48950915]
[1746631656919,1.84759345,1821.8,1821.7,5.48937805]
[1746631657117,3.8094,1822.0,1821.8,5.48887566]
[1746631657422,3.8094,1822.0,1821.7,5.48921381]
[1746631659247,3.8094,1822.0,1821.7,10.97842286]
[1746631659634,3.8094,1822.0,1821.7,5.48920905]
[1746631659832,5.99284426,1822.0,1821.7,5.48920905]
[1746631660539,5.99284426,1822.0,1821.7,5.48919592]
[1746631660707,5.99284426,1822.0,1821.7,5.48919303]
[1746631661753,5.99284426,1822.0,1821.7,5.48917089]
[1746631665042,11.57084426,1822.0,1821.7,5.48917089]
[1746631665441,1.15708443,1821.9,1821.5,5.48982193]
[1746631665618,3.7938,1821.7,1821.5,5.48982193]
[1746631669042,3.7938,1821.7,1821.4,10.49015388]
[1746631669247,3.7938,1821.7,1821.5,5.48995746]
[1746631669763,3.7938,1821.7,1821.4,10.49007437]
[1746631669934,0.37938,1821.6,1821.3,10.98079117]
[1746631670139,0.37938,1821.6,1821.4,5.49026677]
[1746631671153,5.86920919,1821.6,1821.2,5.49061049]
[1746631671555,5.86920919,1821.6,1821.2,10.98131875]
[1746631671725,0.37938,1821.6,1821.4,5.4901499]
[1746631672068,0.37938,1821.6,1821.4,5.49026279]
[1746631674449,0.37938,1821.6,1821.3,6.31868649]
[1746631675530,0.37938,1821.6,1821.4,5.49024099]
[1746631676031,7.18729558,1821.7,1821.4,5.49024099]
[1746631676231,7.18729558,1821.7,1821.5,5.48996975]
[1746631676432,7.18729558,1821.7,1821.4,5.49024099]
[1746631677057,7.18729558,1821.7,1821.5,5.48974014]
[1746631677229,9.3718,1821.7,1821.5,5.48974014]
[1746631677631,9.3718,1821.7,1821.4,10.98028839]
[1746631677950,8.578,1821.7,1821.4,5.49007116]
[1746631678159,3.39349558,1821.6,1821.3,6.3187026]
[1746631678538,3.39349558,1821.6,1821.4,5.49026136]
[1746631678743,3.39349558,1821.6,1821.4,5.49013226]
[1746631679270,3.39349558,1821.6,1821.4,5.49010706]
[1746631680969,3.39349558,1821.6,1821.3,5.49042277]
[1746631681172,5.13958408,1821.6,1821.3,5.49042277]
[1746631681373,8.883908,1821.4,1821.1,0.7565]
[1746631681573,3.7722,1821.5,1820.9,6.32283167]
[1746631681574,3.39349558,1821.2,1820.9,6.32283167]
[1746631681771,3.39349558,1821.2,1820.9,6.32280409]
[1746631681976,3.39349558,1821.2,1821.0,5.49125014]
[1746631684383,6.39349558,1821.2,1821.1,5.49118664]
[1746631684879,3.0,1821.2,1821.1,5.49118664]
[1746631685082,3.01840522,1821.2,1821.0,5.49125014]
[1746631686082,3.01840522,1821.2,1821.0,5.49143731]
[1746631686652,3.94652499,1821.2,1821.0,5.49143731]
[1746631687148,7.34002057,1821.2,1820.9,6.32277314]
[1746631687351,3.39349558,1821.0,1820.8,5.4918769]
[1746631687607,4.14699558,1821.0,1820.8,5.49204785]
[1746631689387,6.39349558,1821.0,1820.9,5.49178977]
[1746631689589,3.0,1821.0,1820.9,5.49178977]
[1746631691354,3.0,1821.0,1820.9,6.24768977]
[1746631691795,0.01840522,1821.2,1821.1,5.49118664]
[1746631692822,0.01840522,1821.2,1821.1,6.27438664]
[1746631693109,0.01840522,1821.2,1821.1,6.32929766]
[1746631693878,0.01840522,1821.2,1821.1,6.27438664]
[1746631695482,0.01840522,1821.2,1821.1,6.32929281]
[1746631695683,0.01840522,1821.2,1821.1,7.51135757]
[1746631696478,0.01840522,1821.2,1821.1,7.4564514]
[1746631697010,0.01840522,1821.2,1821.1,7.51135757]
[1746631697212,0.01840522,1821.2,1821.1,7.4564514]
[1746631697629,0.01840522,1821.2,1821.1,7.51135757]
[1746631697935,0.01840522,1821.2,1821.1,7.51135758]
[1746631698301,0.01840522,1821.2,1821.1,7.4564514]
[1746631698719,0.01840522,1821.2,1821.1,8.06134975]
[1746631699003,0.01840522,1821.2,1821.1,8.0064514]
[1746631704668,0.01840522,1821.2,1821.1,8.06134562]
[1746631705020,0.01840522,1821.2,1821.1,8.0064514]
[1746631706048,0.01840522,1821.2,1821.1,8.06134202]
[1746631706215,0.01840522,1821.2,1821.1,8.06134203]
[1746631706413,0.01840522,1821.2,1821.1,8.76779102]
[1746631707147,0.01840522,1821.2,1821.1,8.71290039]
[1746631709610,0.01840522,1821.2,1821.1,11.71290039]
[1746631710827,0.01840522,1821.2,1821.1,18.3236489]
[1746631711950,0.7832,1821.9,1821.8,5.48907673]
[1746631716514,1.20086956,1821.9,1821.8,5.48907673]
[1746631717550,4.20086956,1821.9,1821.7,5.4892455]
[1746631717753,4.20779558,1821.8,1821.7,5.4892455]
[1746631718151,4.20779558,1821.8,1821.6,5.48952424]
[1746631718356,3.807,1821.7,1821.3,5.49040552]
[1746631718661,4.20049558,1821.4,1821.2,5.49070342]
[1746631718817,4.20049558,1821.4,1821.1,5.49103687]
[1746631718818,0.807,1821.2,1821.1,5.49103687]
[1746631719427,0.807,1821.2,1821.0,9.16036278]
[1746631719626,4.20049558,1821.2,1821.0,3.66896021]
[1746631719821,3.0,1821.1,1821.0,3.66896021]
[1746631720033,3.807,1821.1,1821.0,3.66896021]
[1746631721640,3.807,1821.1,1820.8,5.49197242]
[1746631721970,0.8009,1821.0,1820.8,5.49197242]
[1746631722265,3.0,1820.9,1820.6,15.98505202]
[1746631722483,0.8009,1820.8,1820.6,10.4924919]
[1746631723385,0.8009,1820.8,1820.7,5.49239303]
[1746631723581,0.8009,1820.8,1820.6,10.4924919]
[1746631724393,3.0,1820.7,1820.6,5.0]
[1746631724690,3.0,1820.7,1820.5,5.49296403]
[1746631725255,4.22529558,1820.6,1820.4,5.49309445]
[1746631725461,1.25432956,1820.6,1820.4,5.49329817]
[1746631726090,1.25432956,1820.6,1820.3,5.49346431]
[1746631726266,1.25432956,1820.6,1820.3,5.49338993]
[1746631726592,0.7589,1820.4,1820.2,5.49374797]
[1746631726806,0.7589,1820.4,1820.2,10.98746979]
[1746631726960,0.7589,1820.4,1820.2,5.49372182]
[1746631727302,1.13479,1820.4,1820.3,5.49359995]
[1746631727893,1.13479,1820.4,1820.2,5.49369216]
[1746631728272,1.13479,1820.4,1820.0,5.49429881]
[1746631728273,3.0,1820.3,1820.0,5.49429881]
[1746631728473,0.7636,1820.2,1820.1,5.49419804]
[1746631730478,6.81602514,1820.6,1820.2,5.49390176]
[1746631730795,5.99352956,1820.6,1820.4,5.49308185]
[1746631731098,5.99352956,1820.6,1820.3,5.49344194]
[1746631731099,0.7636,1820.5,1820.3,5.49344194]
[1746631732192,0.7636,1820.5,1820.4,5.49329817]
[1746631735202,8.571,1820.9,1820.2,5.49389547]
[1746631735203,0.7682,1820.7,1820.2,5.49389547]
[1746631735498,3.7682,1820.7,1820.5,5.49289186]
[1746631735792,0.7682,1820.7,1820.6,5.49269471]
[1746631737367,0.7682,1820.7,1820.5,5.49285028]
[1746631737566,0.7682,1820.7,1820.5,5.49284537]
[1746631738167,0.7682,1820.7,1820.6,5.49269471]
[1746631738592,0.7537,1820.9,1820.5,5.49299642]
[1746631738866,0.7537,1820.9,1820.7,5.49211984]
[1746631739081,3.7537,1820.9,1820.7,5.49211984]
[1746631739288,3.7537,1820.9,1820.8,5.49209138]
[1746631739482,3.7537,1820.9,1820.7,5.49211984]
[1746631739889,3.7537,1820.9,1820.7,10.98433035]
[1746631740098,3.7537,1820.9,1820.8,5.49209138]
[1746631741400,0.7537,1820.9,1820.8,5.49209138]
[1746631742886,0.7808,1821.1,1820.7,5.49226144]
[1746631743114,0.7808,1821.1,1820.9,5.49160338]
[1746631743278,0.7808,1821.1,1820.9,10.98319663]
[1746631743479,3.7808,1821.1,1821.0,5.49148819]
[1746631743785,0.7808,1821.1,1821.0,5.49148819]
[1746631744077,0.7808,1821.1,1820.9,5.49159325]
[1746631744893,0.7808,1821.1,1821.0,5.49148819]
[1746631745780,0.7808,1821.1,1820.9,5.49159325]
[1746631745981,0.7808,1821.1,1820.9,5.49158789]
[1746631746206,0.7808,1821.1,1821.0,5.49148819]
[1746631746512,0.7808,1821.1,1821.0,6.5897958]
[1746631746710,25.76521189,1821.6,1821.2,5.49088513]
[1746631746711,0.7966,1821.3,1821.2,5.49088513]
[1746631747593,0.7966,1821.3,1821.1,5.49105672]
[1746631749022,0.7966,1821.3,1821.1,10.98203239]
[1746631749227,0.7966,1821.3,1821.1,5.49097567]
[1746631749415,0.7966,1821.3,1821.2,5.49088513]
[1746631750131,3.797,1821.5,1821.2,5.49088513]
[1746631750635,3.797,1821.5,1821.3,5.49049403]
[1746631751028,3.797,1821.5,1821.3,5.49037592]
[1746631751226,3.797,1821.5,1821.4,5.4902822]
[1746631751434,3.797,1821.5,1821.3,5.490573]
[1746631753766,3.797,1821.5,1821.4,5.4902822]
[1746631753767,0.797,1821.5,1821.4,5.4902822]
[1746631753916,0.8163,1821.7,1821.5,5.48979508]
[1746631754120,3.39411045,1821.8,1821.6,5.4896794]
[1746631754317,0.8163,1821.9,1821.8,5.48907673]
[1746631754527,6.3823,1822.1,1821.9,5.488594]
[1746631754733,3.0,1822.0,1821.9,5.488594]
[1746631756047,7.35994105,1822.1,1821.9,5.488594]
[1746631756209,6.3823,1822.1,1821.9,5.48857482]
[1746631756409,3.65577982,1822.6,1822.0,0.7546]
[1746631756632,3.65577982,1822.6,1822.4,5.48714544]
[1746631756835,3.0,1822.5,1822.4,5.48714544]
[1746631758156,4.0213578,1822.6,1822.4,5.48714544]
[1746631758533,4.0213578,1822.6,1822.3,5.48738857]
[1746631758534,3.0,1822.5,1822.3,5.48738857]
[1746631759256,0.36557798,1822.6,1822.4,5.48726953]
[1746631759455,3.0,1822.7,1822.4,5.48709264]
[1746631759648,0.7884,1822.6,1822.3,5.4874008]
[1746631759846,0.7884,1822.6,1822.1,5.48799198]
[1746631760027,0.7884,1822.6,1822.0,0.7546]
[1746631760028,3.0,1822.3,1822.0,5.48827286]
[1746631760228,0.92756797,1822.3,1822.1,5.48817105]
[1746631760428,3.7884,1822.4,1822.1,5.48817105]
[1746631761154,8.48761326,1822.3,1821.9,5.48857403]
[1746631761351,3.0,1822.3,1822.0,5.48847342]
[1746631762461,3.0,1822.3,1822.1,5.48807075]
[1746631763363,8.48773728,1822.3,1821.9,5.48856391]
[1746631763561,9.97170971,1822.3,1821.9,5.48856]
[1746631763737,4.48397243,1822.3,1822.0,5.48845569]
[1746631764869,4.48397243,1822.3,1822.1,5.48798083]
[1746631765035,3.0,1822.3,1822.1,5.48798083]
[1746631767739,3.0,1822.3,1822.1,5.48816391]
[1746631768575,3.0,1822.3,1822.0,5.48830262]
[1746631771345,6.3794,1822.6,1822.3,5.48745458]
[1746631771538,11.86607335,1822.6,1822.3,5.48745458]
[1746631771972,3.0,1822.5,1822.3,5.48745458]
[1746631773563,3.0,1822.5,1822.3,5.48751451]
[1746631773990,3.0,1822.5,1822.2,5.4877425]
[1746631774298,3.0,1822.5,1822.3,5.48753862]
[1746631775303,0.8154,1822.6,1822.4,5.48697268]
[1746631775593,0.8154,1822.6,1822.4,10.97402461]
[1746631775761,0.8154,1822.6,1822.4,5.48697268]
[1746631776400,0.8154,1822.6,1822.5,5.48696844]
[1746631776710,3.8154,1822.6,1822.4,5.48697268]
[1746631777537,8.48627176,1822.8,1822.4,6.58441377]
[1746631777670,3.7767,1822.8,1822.5,5.48685787]
[1746631777995,9.26279087,1822.8,1822.5,5.48685787]
[1746631778305,9.26279087,1822.8,1822.4,5.48697268]
[1746631780713,0.7767,1822.8,1822.5,5.48689049]
[1746631780928,5.56,1822.9,1822.7,5.48636637]
[1746631781402,3.0,1822.9,1822.7,5.48636637]
[1746631784337,3.0,1822.9,1822.7,5.48611617]
[1746631784491,5.89188743,1823.2,1822.9,5.48560302]
[1746631784492,3.833,1823.2,1822.9,5.48560302]
[1746631785117,3.0,1823.0,1822.9,5.48560302]
[1746631785327,3.0,1823.0,1822.8,5.48588213]
[1746631786448,3.0,1823.0,1822.8,10.97177745]
[1746631786735,3.0,1823.0,1822.8,5.48588213]
[1746631787140,3.0,1823.0,1822.7,5.48622383]
[1746631787342,3.0,1823.0,1822.7,6.66386982]
[1746631787647,0.8171,1822.9,1822.7,5.48616906]
[1746631788637,0.8171,1822.9,1822.7,10.97240523]
[1746631788835,0.8171,1822.9,1822.7,5.48616906]
[1746631789250,0.8171,1822.9,1822.8,5.48606539]
[1746631789449,0.8171,1822.9,1822.7,5.48616906]
[1746631789757,0.8171,1822.9,1822.7,6.03478597]
[1746631790622,0.8171,1822.9,1822.7,5.48362735]